bitfinex/quotes_SOLUSD_20250919
["timestamp","ask_amount","ask_price","bid_price","bid_amount"]
[1758249034152,13.8195998,246.97,246.95,6.32794477]
[1758249034360,26.73519381,246.97,246.96,2.27854206]
[1758249035052,27.41519381,246.97,246.96,2.27854206]
[1758249037067,13.59559401,246.96,246.94,2.30854206]
[1758249037268,13.59559401,246.96,246.94,0.03]
[1758249037269,13.59559401,246.95,246.94,0.03]
[1758249037643,0.68,246.95,246.94,0.03]
[1758249037855,0.68,246.95,246.94,4.07951658]
[1758249038868,3.2428652,246.95,246.94,0.03]
[1758249039069,48.07845921,246.95,246.94,0.03]
[1758249039255,71.72745893,246.95,246.94,0.03]
[1758249040763,75.77686164,246.95,246.94,0.03]
[1758249043867,73.49831958,246.95,246.94,0.03]
[1758249044062,75.77686164,246.95,246.94,0.03]
[1758249046656,69.44891687,246.95,246.94,0.03]
[1758249046888,37.24459373,246.95,246.94,0.03]
[1758249047367,37.24459373,246.95,246.94,6.35810875]
[1758249048966,37.92459373,246.95,246.94,4.07956669]
[1758249049365,37.92459373,246.95,246.94,0.03]
[1758249049886,40.48745893,246.95,246.94,0.03]
[1758249052565,37.52891687,246.95,246.94,0.03]
[1758249052871,37.24459373,246.95,246.94,2.92854206]
[1758249053077,37.24459373,246.95,246.94,2.30854206]
[1758249053484,37.24459373,246.95,246.94,6.35810875]
[1758249053669,37.24459373,246.95,246.94,4.07956669]
[1758249055466,37.24459373,246.95,246.94,6.35810875]
[1758249056075,37.24459373,246.95,246.94,6.97810875]
[1758249056585,37.24459373,246.95,246.94,4.69956669]
[1758249056785,37.24459373,246.95,246.94,6.97810875]
[1758249057173,37.24459373,246.95,246.94,6.35810875]
[1758249059791,37.24459373,246.95,246.94,0.03]
[1758249060086,37.24459373,246.95,246.94,2.30854206]
[1758249061186,37.24459373,246.95,246.94,2.92854206]
[1758249061187,23.64899972,246.95,246.94,2.92854206]
[1758249062279,23.64899972,246.95,246.94,6.97810875]
[1758249062888,2.02514438,246.95,246.94,6.97810875]
[1758249063087,13.59559401,246.99,246.94,17.10202549]
[1758249063281,13.59559401,246.99,246.98,2.27854206]
[1758249063696,13.87991715,247.02,246.98,2.89854206]
[1758249063998,13.87991715,247.02,246.99,0.62]
[1758249064496,13.87991715,247.02,247.0,4.04858299]
[1758249065996,13.59559401,247.02,246.99,14.17056636]
[1758249066498,13.59559401,247.02,247.01,1.45677286]
[1758249068298,13.59559401,247.02,247.01,5.50519195]
[1758249070094,13.59559401,247.02,246.99,14.17056636]
[1758249070308,13.59559401,247.02,247.01,1.45677286]
[1758249071299,13.59559401,247.02,247.01,5.50519195]
[1758249074292,13.59559401,247.02,247.01,4.04841909]
[1758249074490,2.56780001,247.03,247.01,6.12519195]
[1758249074796,2.56780001,247.03,247.02,0.62]
[1758249075102,1e-08,247.03,247.02,6.12502806]
[1758249076787,1e-08,247.03,247.02,4.0482552]
[1758249076985,1e-08,247.03,247.0,31.22]
[1758249076986,13.59559401,247.02,246.99,10.12181945]
[1758249077190,0.68,247.01,247.0,1.45677286]
[1758249078202,0.68,247.01,247.0,5.50535585]
[1758249079492,14.27559402,247.03,247.0,5.50535585]
[1758249079689,14.27559402,247.03,246.99,10.12181945]
[1758249079690,0.68,247.02,247.01,1.45677286]
[1758249080582,13.59559402,247.03,247.01,1.45677286]
[1758249080783,13.59559402,247.03,247.02,1.45677286]
[1758249080784,1e-08,247.03,247.02,1.45677286]
[1758249081597,1e-08,247.03,247.02,5.50502806]
[1758249081802,0.68000001,247.03,247.02,5.50502806]
[1758249082803,1e-08,247.03,247.02,5.50502806]
[1758249083503,1e-08,247.03,247.02,6.12502806]
[1758249085823,1e-08,247.03,247.02,7.58180092]
[1758249086321,1e-08,247.03,247.02,7.61180092]
[1758249086813,1e-08,247.03,247.02,30.6982552]
[1758249087015,0.06,247.05,247.02,40.8188932]
[1758249087194,0.06,247.05,247.03,0.62]
[1758249087512,0.06,247.05,247.04,4.04792746]
[1758249088020,0.06,247.05,247.04,6.96147318]
[1758249088803,0.06,247.05,247.04,5.50470032]
[1758249089105,0.75,247.05,247.04,5.50470032]
[1758249090427,0.06,247.05,247.04,5.50470032]
[1758249093824,1e-08,247.05,247.04,7.58147318]
[1758249094019,1e-08,247.06,247.04,7.58147318]
[1758249094234,1e-08,247.06,247.05,7.2838643]
[1758249094611,1e-08,247.06,247.05,11.33162791]
[1758249097034,0.69000001,247.06,247.05,4.04776361]
[1758249097202,0.69000001,247.06,247.03,4.04794353]
[1758249097511,0.69,247.05,247.03,4.04794353]
[1758249097706,0.69,247.04,247.03,4.04794353]
[1758249098128,14.28559401,247.04,247.03,4.04794353]
[1758249099138,13.59559401,247.03,247.02,4.0782552]
[1758249099332,13.59559401,247.03,247.02,0.03]
[1758249099516,14.28559401,247.03,247.02,0.03]
[1758249102644,14.56991715,247.03,247.02,0.03]
[1758249102818,1.45677286,247.01,246.99,0.03]
[1758249103334,0.69,247.0,246.99,0.03]
[1758249103520,14.56991715,247.0,246.99,0.03]
[1758249105913,16.02669001,247.0,246.99,0.03]
[1758249106783,34.66749048,247.0,246.99,0.03]
[1758249111221,64.12639448,247.0,246.99,0.03]
[1758249111543,64.41071762,247.0,246.99,0.03]
[1758249111722,64.26855605,247.0,246.99,0.03]
[1758249111925,65.72532891,247.0,246.99,0.03]
[1758249112318,65.86749048,247.0,246.99,0.03]
[1758249113442,64.41071762,247.0,246.99,0.03]
[1758249113841,63.72071762,247.0,246.99,0.03]
[1758249114218,32.52071762,247.0,246.99,0.03]
[1758249114646,33.21071762,247.0,246.99,0.03]
[1758249114944,34.66749048,247.0,246.99,0.03]
[1758249115642,33.21071762,247.0,246.99,0.03]
[1758249117843,34.66749048,247.0,246.99,0.03]
[1758249118424,65.86749048,247.0,246.99,0.03]
[1758249119051,69.91607347,247.0,246.99,0.03]
[1758249121836,68.45930061,247.0,246.99,0.03]
[1758249122151,69.91607347,247.0,246.99,0.03]
[1758249123841,70.73799286,247.0,246.99,0.03]
[1758249124940,68.45930061,247.0,246.99,0.03]
[1758249125136,70.73799286,247.0,246.99,0.03]
[1758249126142,72.36015154,247.0,246.99,0.03]
[1758249127239,13.87991715,246.98,246.97,0.03]
[1758249127445,49.63730165,246.98,246.97,0.03]
[1758249127637,76.4317862,246.98,246.97,0.03]
[1758249128138,82.10298731,246.98,246.97,0.03]
[1758249130164,80.48069704,246.98,246.97,0.03]
[1758249130357,82.10298731,246.98,246.97,0.03]
[1758249130947,80.48069704,246.98,246.97,0.03]
[1758249132344,82.1029873,246.98,246.97,0.03]
[1758249133060,82.1029873,246.98,246.94,0.03]
[1758249133357,42.1586094,246.95,246.94,0.03]
[1758249133668,98.50328788,246.95,246.94,0.03]
[1758249133838,99.21328788,246.95,246.94,0.03]
[1758249135067,13.87991715,246.94,246.91,0.03]
[1758249135237,42.1586094,246.92,246.91,0.03]
[1758249135654,42.8686094,246.92,246.91,0.03]
[1758249135862,67.24403648,246.92,246.91,0.03]
[1758249136250,71.29393118,246.92,246.91,0.03]
[1758249137143,72.91661631,246.92,246.91,0.03]
[1758249140664,13.87991715,246.91,246.89,0.03]
[1758249140957,47.3586094,246.9,246.89,0.03]
[1758249141166,72.04868725,246.9,246.89,0.03]
[1758249142259,76.09891001,246.9,246.89,0.03]
[1758249143060,40.84868725,246.9,246.89,0.03]
[1758249143265,76.09891001,246.9,246.89,0.03]
[1758249144758,44.89891001,246.9,246.89,0.03]
[1758249144950,76.09891001,246.9,246.89,0.03]
[1758249146569,38.569995,246.9,246.89,0.03]
[1758249146741,40.84868725,246.9,246.89,0.03]
[1758249146946,76.09891001,246.9,246.89,0.03]
[1758249149041,40.84868725,246.9,246.89,0.03]
[1758249149353,76.09891001,246.9,246.89,0.03]
[1758249160887,68.75567186,246.9,246.89,0.68]
[1758249161371,94.89783343,246.9,246.89,0.68]
[1758249161873,95.039995,246.9,246.89,0.68]
[1758249162073,97.31868725,246.9,246.89,0.68]
[1758249162660,97.31868725,246.9,246.89,0.03]
[1758249164368,97.31868725,246.9,246.89,0.68]
[1758249164557,76.05891001,246.9,246.89,0.03]
[1758249164960,77.68159514,246.9,246.89,0.03]
[1758249166274,103.68159514,246.9,246.89,0.03]
[1758249167861,102.99159514,246.9,246.89,0.03]
[1758249168565,71.81159514,246.9,246.89,0.03]
[1758249168879,103.68159514,246.9,246.89,0.03]
[1758249169383,102.99159514,246.9,246.89,0.03]
[1758249169876,103.68159514,246.9,246.89,0.03]
[1758249171257,146.37991715,246.89,246.88,0.03]
[1758249171481,150.93730165,246.89,246.88,0.03]
[1758249171793,174.4569315,246.89,246.88,0.03]
[1758249171965,176.07994585,246.89,246.88,0.03]
[1758249173273,180.13033266,246.89,246.88,0.03]
[1758249174762,44.43730165,246.87,246.86,0.03]
[1758249174956,75.61730165,246.87,246.86,0.03]
[1758249175184,97.38216539,246.87,246.86,0.03]
[1758249175983,99.00524559,246.87,246.86,0.03]
[1758249176397,98.49857604,246.87,246.86,0.03]
[1758249176590,103.05596054,246.87,246.86,0.03]
[1758249180990,66.89092245,246.87,246.86,0.03]
[1758249181174,69.7922302,246.87,246.86,0.68]
[1758249181488,85.94767811,246.87,246.86,0.03]
[1758249181681,86.08983968,246.87,246.86,0.03]
[1758249182072,88.36853193,246.87,246.86,0.03]
[1758249182988,57.18853193,246.87,246.86,0.03]
[1758249183282,88.36853193,246.87,246.86,0.03]
[1758249183877,91.10979238,246.87,246.86,0.03]
[1758249184370,81.22016147,246.87,246.86,0.68]
[1758249184679,85.27087642,246.87,246.86,0.03]
[1758249184878,85.27087642,246.87,246.86,0.68]
[1758249185079,85.27087642,246.87,246.86,0.03]
[1758249185481,81.22016147,246.87,246.86,0.03]
[1758249187488,50.04016147,246.87,246.86,0.68]
[1758249187691,79.59708127,246.87,246.86,0.68]
[1758249188082,79.59708127,246.87,246.86,0.03]
[1758249189686,84.29779622,246.87,246.86,0.03]
[1758249190003,83.64779622,246.87,246.86,0.03]
[1758249190680,79.59708127,246.87,246.86,0.03]
[1758249193487,79.65708127,246.87,246.86,0.03]
[1758249194107,67.67450988,246.87,246.86,0.68]
[1758249195004,35.05478089,246.87,246.86,4.73087904]
[1758249195185,66.21478089,246.87,246.86,4.73087904]
[1758249195580,65.93045775,246.87,246.86,4.73087904]
[1758249196202,34.77045775,246.87,246.86,4.73087904]
[1758249196402,65.93045775,246.87,246.86,4.73087904]
[1758249196708,34.77045775,246.87,246.86,4.73087904]
[1758249196881,34.77045775,246.87,246.86,6.19060803]
[1758249197283,21.17486374,246.87,246.86,6.19060803]
[1758249198709,1e-08,246.87,246.86,6.19060803]
[1758249198911,1e-08,246.87,246.86,13.84094505]
[1758249200598,1e-08,246.87,246.86,12.38121606]
[1758249201311,1e-08,246.87,246.86,13.84094505]
[1758249201510,1e-08,246.87,246.86,39.84094505]
[1758249202111,1e-08,246.87,246.86,36.92148707]
[1758249202418,1e-08,246.87,246.86,10.92148707]
[1758249202627,1e-08,246.87,246.86,0.03]
[1758249202786,1e-08,246.87,246.86,4.08087904]
[1758249203218,15.44339403,246.87,246.86,4.08087904]
[1758249203919,1.84780002,246.87,246.86,4.08087904]
[1758249204105,1.84780002,246.87,246.86,6.19060803]
[1758249204305,1.84780002,246.87,246.86,10.27148707]
[1758249208428,1.84780002,246.87,246.86,8.81175808]
[1758249208606,1.84780002,246.87,246.86,10.27148707]
[1758249210514,2.52780002,246.87,246.86,4.08087904]
[1758249211401,4.27185215,246.87,246.86,0.03]
[1758249213926,17.86744616,246.87,246.86,0.03]
[1758249214507,21.91816111,246.87,246.86,0.03]
[1758249214708,23.3778901,246.87,246.86,0.03]
[1758249215306,25.00077275,246.87,246.86,0.03]
[1758249221752,23.3778901,246.87,246.86,0.03]
[1758249223438,27.75707707,246.87,246.86,0.03]
[1758249223949,40.06233894,246.87,246.86,0.03]
[1758249224834,32.76369399,246.87,246.86,0.03]
[1758249225038,40.06233894,246.87,246.86,0.03]
[1758249226880,40.06233894,246.87,246.85,0.03]
[1758249226881,13.87991715,246.86,246.85,0.03]
[1758249227057,46.47964614,246.86,246.85,0.03]
[1758249227252,69.28462423,246.86,246.85,0.03]
[1758249227755,70.90777029,246.86,246.84,0.03]
[1758249228051,37.30170623,246.85,246.84,0.03]
[1758249228432,39.60518169,246.85,246.84,0.03]
[1758249229139,43.65622483,246.85,246.84,0.03]
[1758249229457,49.72690906,246.85,246.84,0.03]
[1758249231564,78.95911046,246.85,246.84,0.03]
[1758249231881,72.88842623,246.85,246.84,0.03]
[1758249232034,73.17274937,246.85,246.84,0.03]
[1758249232235,70.74869724,246.85,246.84,0.03]
[1758249232460,72.88842623,246.85,246.84,0.03]
[1758249232663,73.17274937,246.85,246.84,0.03]
[1758249233849,37.01738309,246.85,246.84,0.03]
[1758249234051,68.15738309,246.85,246.84,0.03]
[1758249234250,68.29954466,246.85,246.84,0.03]
[1758249234646,73.17274937,246.85,246.84,0.03]
[1758249237545,74.79615893,246.85,246.84,0.03]
[1758249238183,26.0,246.82,246.8,0.03]
[1758249238384,47.95937513,246.81,246.8,0.03]
[1758249238565,67.58918879,246.81,246.8,0.03]
[1758249238886,65.98729823,246.81,246.8,0.68]
[1758249239057,67.46702722,246.81,246.8,0.68]
[1758249239473,67.60918879,246.81,246.8,0.03]
[1758249240672,71.66088847,246.81,246.8,0.03]
[1758249240871,67.60918879,246.81,246.8,0.03]
[1758249241268,71.66088847,246.81,246.8,0.03]
[1758249242276,72.32088847,246.81,246.8,0.03]
[1758249243996,73.14318572,246.81,246.8,0.03]
[1758249244487,39.59559401,246.78,246.77,0.1]
[1758249244683,75.62396963,246.78,246.77,0.1]
[1758249244995,99.99578683,246.78,246.77,0.1]
[1758249247392,95.43173435,246.78,246.77,0.1]
[1758249247570,99.99578683,246.78,246.77,0.1]
[1758249251799,94.77173435,246.78,246.77,0.1]
[1758249252084,99.33578683,246.78,246.77,0.1]
[1758249252291,99.99578683,246.78,246.77,0.1]
[1758249252890,95.43173435,246.78,246.77,0.1]
[1758249253091,99.99578683,246.78,246.77,0.1]
[1758249253679,99.97578683,246.78,246.77,0.1]
[1758249256612,13.87991715,246.77,246.76,0.03]
[1758249256936,16.16194339,246.77,246.76,0.03]
[1758249257197,16.16194339,246.77,246.74,0.03]
[1758249257198,39.87991715,246.75,246.74,0.03]
[1758249257496,92.19096536,246.75,246.74,0.03]
[1758249257686,92.85096536,246.75,246.74,0.03]
[1758249258176,62.65946245,246.75,246.74,0.03]
[1758249258375,96.10148869,246.75,246.74,0.03]
[1758249258576,96.24365026,246.75,246.74,0.03]
[1758249258777,92.06880379,246.75,246.74,0.68]
[1758249258997,92.21096536,246.75,246.74,0.68]
[1758249259190,96.26365026,246.75,246.74,0.03]
[1758249259599,92.21096536,246.75,246.74,0.03]
[1758249259794,61.03096536,246.75,246.74,0.03]
[1758249259994,91.92664222,246.75,246.74,0.68]
[1758249260200,92.06880379,246.75,246.74,0.68]
[1758249260694,92.21096536,246.75,246.74,0.68]
[1758249261094,89.78677755,246.75,246.74,0.68]
[1758249261297,89.66461598,246.75,246.74,0.68]
[1758249261698,89.94893912,246.75,246.74,0.68]
[1758249262000,92.23096536,246.75,246.74,0.68]
[1758249262797,13.87991715,246.74,246.72,0.03]
[1758249262995,47.36194339,246.73,246.72,0.03]
[1758249263192,64.68922396,246.73,246.72,0.03]
[1758249263606,33.48922396,246.73,246.72,0.03]
[1758249263778,64.74922396,246.73,246.72,0.03]
[1758249265802,33.48922396,246.73,246.72,0.03]
[1758249266000,64.74922396,246.73,246.72,0.03]
[1758249266298,68.80223737,246.73,246.72,0.03]
[1758249267415,69.52223737,246.73,246.72,0.03]
[1758249268289,68.80223737,246.73,246.72,0.03]
[1758249270889,69.52223737,246.73,246.72,0.03]
[1758249271712,69.50223737,246.73,246.72,0.03]
[1758249272819,38.26223737,246.73,246.72,0.03]
[1758249273000,68.78223737,246.73,246.72,0.03]
[1758249273501,69.50223737,246.73,246.72,0.03]
[1758249273696,68.78223737,246.73,246.72,0.03]
[1758249274510,69.50223737,246.73,246.72,0.03]
[1758249276204,38.26223737,246.73,246.72,0.03]
[1758249276528,69.48223737,246.73,246.72,0.03]
[1758249276822,71.76426361,246.73,246.72,0.03]
[1758249279497,13.87991715,246.72,246.71,0.1]
[1758249279703,18.44396963,246.72,246.71,0.1]
[1758249279904,35.83562872,246.72,246.71,0.1]
[1758249280604,39.88880641,246.72,246.71,0.1]
[1758249281007,71.10880641,246.72,246.71,0.1]
[1758249281528,36.88678017,246.72,246.71,0.1]
[1758249281831,68.10678017,246.72,246.71,0.1]
[1758249282331,68.82678017,246.72,246.71,0.1]
[1758249284428,201.32678017,246.72,246.71,0.1]
[1758249285027,170.10678017,246.72,246.71,0.1]
[1758249285325,201.32678017,246.72,246.71,0.1]
[1758249286730,169.38678017,246.72,246.71,0.1]
[1758249286921,200.58678017,246.72,246.71,0.1]
[1758249287235,196.53360248,246.72,246.71,0.1]
[1758249287434,163.05157624,246.72,246.71,0.75]
[1758249287610,196.53360248,246.72,246.71,0.1]
[1758249287926,201.1646186,246.72,246.71,0.1]
[1758249288130,201.30678017,246.72,246.71,0.1]
[1758249289639,167.10475393,246.72,246.71,0.1]
[1758249289837,200.60678017,246.72,246.71,0.1]
[1758249291213,165.33360248,246.72,246.71,0.75]
[1758249291440,196.55360248,246.72,246.71,0.75]
[1758249291947,196.55360248,246.72,246.71,0.1]
[1758249292242,194.27157624,246.72,246.71,0.75]
[1758249292436,196.55360248,246.72,246.71,0.75]
[1758249292939,30.2672531,246.72,246.71,0.75]
[1758249293321,30.2672531,246.72,246.71,4.80334198]
[1758249293633,61.5072531,246.72,246.71,4.80334198]
[1758249297417,30.2672531,246.72,246.71,4.80334198]
[1758249297925,61.4872531,246.72,246.71,7.08536822]
[1758249298523,61.4872531,246.72,246.71,4.80334198]
[1758249298718,30.2672531,246.72,246.71,4.80334198]
[1758249300028,30.2672531,246.72,246.71,0.1]
[1758249300231,32.54927934,246.72,246.71,0.1]
[1758249301522,32.54927934,246.72,246.71,0.13]
[1758249301725,32.60927934,246.72,246.71,0.13]
[1758249301970,30.3272531,246.72,246.71,4.83334198]
[1758249302142,30.3272531,246.72,246.71,4.18334198]
[1758249303340,30.3272531,246.72,246.71,7.11536822]
[1758249303644,16.73165909,246.72,246.71,7.11536822]
[1758249304533,0.06,246.74,246.71,17.24872317]
[1758249304735,0.06,246.74,246.73,2.28202624]
[1758249305141,0.06,246.77,246.74,26.0]
[1758249305445,0.06,246.77,246.76,6.3345469]
[1758249305950,0.06,246.77,246.76,6.16190396]
[1758249308534,1e-08,246.77,246.76,7.62128726]
[1758249308735,1.01540005,246.8,246.78,26.0]
[1758249308937,1.01540005,246.8,246.79,2.1093833]
[1758249309136,0.06,246.81,246.79,2.1093833]
[1758249309328,1e-08,246.81,246.8,2.1093833]
[1758249309539,1e-08,246.81,246.8,6.16124715]
[1758249310449,0.06,246.86,246.83,26.0]
[1758249310638,0.06,246.86,246.85,2.9187666]
[1758249310855,3.86320006,246.89,246.85,2.9187666]
[1758249311040,3.86320006,246.89,246.86,2.1093833]
[1758249311562,3.86320006,246.89,246.86,6.16026234]
[1758249312446,3.86320006,246.89,246.86,5.51026234]
[1758249312762,3.86320006,246.89,246.86,6.16026234]
[1758249315557,3.86320006,246.89,246.86,5.51026234]
[1758249315838,3.86320006,246.89,246.86,4.05087904]
[1758249316036,3.86320006,246.89,246.86,5.51026234]
[1758249316853,3.86320006,246.89,246.86,6.16026234]
[1758249319768,3.86320006,246.89,246.86,7.61964564]
[1758249321665,3.86320006,246.89,246.86,5.54026234]
[1758249321874,4.58320006,246.89,246.86,5.54026234]
[1758249322156,3.86320006,246.89,246.86,5.54026234]
[1758249326082,3.86320006,246.89,246.86,7.64964564]
[1758249326278,0.06,246.9,246.88,26.0]
[1758249326573,0.06,246.9,246.89,1.4593833]
[1758249327365,0.06,246.9,246.89,6.15977011]
[1758249328182,0.06,246.9,246.89,5.50977011]
[1758249332275,0.06,246.9,246.89,36.66977011]
[1758249332762,0.06,246.9,246.89,5.50977011]
[1758249332962,0.06,246.9,246.89,36.64977011]
[1758249333572,0.06,246.91,246.89,37.29977011]
[1758249333890,0.06,246.94,246.9,2.1093833]
[1758249334191,0.06,246.94,246.93,5.50911399]
[1758249334387,0.06,246.94,246.93,36.64911399]
[1758249338491,1e-08,246.94,246.93,36.64911399]
[1758249338792,0.1,246.99,246.96,26.0]
[1758249338983,0.1,246.99,246.98,1.4593833]
[1758249339190,0.76,246.99,246.98,1.4593833]
[1758249340576,0.76,246.99,246.98,5.50829414]
[1758249341289,0.76,246.99,246.98,4.04891084]
[1758249341494,0.82,246.99,246.98,4.04891084]
[1758249342702,0.82,246.99,246.94,14.17348343]
[1758249343004,0.66,246.98,246.96,1.4593833]
[1758249343187,0.16,246.99,246.97,1.4593833]
[1758249343677,0.66,246.98,246.97,1.4593833]
[1758249344483,0.66,246.98,246.97,5.50845808]
[1758249344891,0.66,246.98,246.97,4.04907478]
[1758249345090,0.66,246.98,246.97,5.50845808]
[1758249348497,0.66,246.98,246.97,4.04907478]
[1758249348688,0.66,246.98,246.97,5.50845808]
[1758249350199,0.66,246.98,246.95,5.50868274]
[1758249350403,13.59559401,246.95,246.91,1.4593833]
[1758249350705,15.05497731,246.93,246.89,4.05038681]
[1758249350879,0.66,246.92,246.88,0.03]
[1758249351080,13.59559401,246.91,246.88,4.08051278]
[1758249351280,0.66,246.9,246.88,4.08051278]
[1758249351492,0.66,246.89,246.88,4.08051278]
[1758249351699,0.66,246.89,246.88,0.03]
[1758249354398,14.25559401,246.89,246.88,0.03]
[1758249359790,15.99930045,246.89,246.88,0.03]
[1758249360910,13.59559401,246.89,246.88,0.03]
[1758249361417,14.25559401,246.89,246.88,0.03]
[1758249364991,45.39559401,246.89,246.88,0.03]
[1758249367917,0.06,247.03,246.88,2.30906242]
[1758249368220,13.59559401,246.93,246.91,2.27906242]
[1758249368408,31.14,246.92,246.91,2.27906242]
[1758249368793,13.59559401,246.91,246.89,6.32944923]
[1758249369015,13.59559401,246.91,246.89,4.05038681]
[1758249369224,14.25559401,246.9,246.89,4.05038681]
[1758249370819,13.59559401,246.9,246.89,4.05038681]
[1758249371733,14.25559401,246.9,246.88,2.30906242]
[1758249372033,0.66,246.89,246.88,2.30906242]
[1758249373610,31.8,246.89,246.88,2.30906242]
[1758249374120,31.8,246.89,246.88,6.35961329]
[1758249374723,31.14,246.89,246.88,6.35961329]
[1758249375303,13.59559401,246.9,246.88,6.35961329]
[1758249375501,0.66,246.97,246.89,2.92906242]
[1758249375719,13.59559401,246.96,246.9,4.70022276]
[1758249376022,13.59559401,246.96,246.95,2.27906242]
[1758249376023,44.73559401,246.96,246.95,2.27906242]
[1758249376421,45.39559401,246.96,246.95,2.27906242]
[1758249377097,44.73559401,246.96,246.95,2.27906242]
[1758249377515,0.06,246.97,246.95,2.27906242]
[1758249377721,0.06,246.97,246.96,6.32830116]
[1758249381426,0.06,246.97,246.96,6.97830116]
[1758249384209,0.06,246.97,246.96,9.25736358]
[1758249389736,0.06,246.98,246.96,9.25736358]
[1758249389935,0.16,246.99,246.98,26.0]
[1758249390116,1e-08,246.99,246.98,28.27906242]
[1758249390318,1e-08,246.99,246.98,2.92906242]
[1758249391132,1e-08,247.0,246.99,26.0]
[1758249391338,1e-08,247.0,246.99,28.92906242]
[1758249393133,1e-08,247.0,246.99,32.97780933]
[1758249393338,0.06,247.03,246.99,43.09967661]
[1758249393643,0.06,247.03,247.01,2.27906242]
[1758249394023,0.06,247.03,247.01,2.92906242]
[1758249394947,0.06,247.03,247.01,6.97748151]
[1758249395140,0.06,247.03,247.01,38.09748151]
[1758249395614,0.06,247.03,247.02,2.92906242]
[1758249395927,0.06,247.03,247.02,2.27906242]
[1758249397244,0.06,247.03,247.02,6.32731762]
[1758249400752,0.06,247.05,247.02,6.32731762]
[1758249401048,0.06,247.05,247.03,28.27906242]
[1758249401749,0.06,247.05,247.03,32.32715374]
[1758249401952,0.06,247.05,247.04,2.27906242]
[1758249402119,0.06,247.05,247.04,35.67812484]
[1758249404247,0.06,247.05,247.04,39.7260523]
[1758249405944,1e-08,247.05,247.04,39.7260523]
[1758249406954,1e-08,247.05,247.04,41.34669934]
[1758249407329,1e-08,247.05,247.04,41.99669934]
[1758249408347,0.66000001,247.05,247.04,65.06763692]
[1758249408651,1e-08,247.05,247.04,65.06763692]
[1758249409335,0.66000001,247.05,247.04,65.06763692]
[1758249411330,1e-08,247.05,247.04,65.06763692]
[1758249412140,1e-08,247.05,247.04,65.09763692]
[1758249412856,1e-08,247.05,247.04,67.37669934]
[1758249413161,13.0921451,247.14,247.04,52.20651799]
[1758249413332,13.0921451,247.14,247.1,2.27906242]
[1758249415158,13.59559401,247.12,247.11,4.04678078]
[1758249415534,14.26559401,247.12,247.11,4.04678078]
[1758249422163,14.26559401,247.12,247.11,2.27906242]
[1758249422857,14.26559401,247.12,247.07,10.11846108]
[1758249423037,13.59559401,247.15,247.11,2.27906242]
[1758249423237,15.94859474,247.16,247.14,2.27906242]
[1758249423448,15.94859474,247.16,247.12,0.68]
[1758249423449,15.94859474,247.16,247.15,2.27906242]
[1758249424165,15.94859474,247.16,247.15,6.32518825]
[1758249425960,0.67,247.17,247.15,6.32518825]
[1758249426158,0.67,247.17,247.16,2.27906242]
[1758249426356,0.67,247.17,247.16,6.32502454]
[1758249427865,0.67,247.17,247.16,1.45504161]
[1758249429866,0.67,247.17,247.16,5.50100373]
[1758249430343,0.1,247.19,247.16,5.50100373]
[1758249430544,0.67,247.18,247.16,4.04596212]
[1758249430743,0.16,247.19,247.16,4.04596212]
[1758249430744,0.16,247.19,247.17,1.45504161]
[1758249430946,0.16,247.19,247.18,1.45504161]
[1758249431567,0.16,247.19,247.18,5.50067637]
[1758249431865,0.83,247.19,247.18,5.50067637]
[1758249433558,0.83,247.19,247.18,4.04563476]
[1758249433872,0.83,247.19,247.18,5.50067637]
[1758249435768,0.16,247.19,247.18,5.50067637]
[1758249439179,0.83,247.19,247.18,5.50067637]
[1758249439552,0.16,247.19,247.18,5.50067637]
[1758249440782,0.16,247.19,247.18,4.04563476]
[1758249440958,0.16,247.19,247.18,5.50067637]
[1758249441476,0.16,247.19,247.18,1.45504161]
[1758249441776,0.16,247.19,247.18,2.13504161]